{"text_format":"3","workbook":"xlsx","n_sheets":13,"sheets":["Başlangıç","Temel Bilgiler","İşlevlere Giriş","ORTALAMA","MIN VE MAKS","Tarih ve Saat","Metin ve sayıları birleştirme","EĞER ifadeleri","DÜŞEYARA","Koşullu İşlevler","İşlev Sihirbazı","Formül Hataları","Daha fazla bilgi edinin"],"not_rendered":{"images":32,"defined_names":21},"read":"whole","date_system":"1900"}

{"sheet":"Başlangıç","index":0,"n_rows":4,"n_cols":1,"rows_kept":4}
[]
["Formüllerle çalışmaya başlama"]
["Yalnızca birkaç adımda, dünyanın en güçlü elektronik tablo uygulaması olan Excel’i kullanmaya başlayıp formül ve işlevler oluşturabilirsiniz."]
["CTRL+HOME tuşlarına basarak başa dönün. Tura başlamak için CTRL+PAGE DOWN tuşlarına basın."]

{"sheet":"Temel Bilgiler","index":1,"n_rows":43,"n_cols":10,"rows_kept":43}
["Temel bilgiler: Excel’le matematik işlemleri yapma"]
["Excel’de yerleşik işlevlerin hiçbirini kullanmadan Toplama, Çıkarma, Çarpma ve Bölme yapabilirsiniz. Bazı basit işleçleri kullanmanız yeterlidir: +, -, *, /. Tüm formüller eşittir (=) işaretiyle başlar.\n",null,"Kullanılacak sayılar:",null,"İşlem:","Formüller:","Yanıtlar:"]
["Toplama yapmak için F3 hücresini seçip =C3+C4 yazın ve Enter tuşuna basın. \n",null,1,null,"Toplama (+) ",null,{"$f":"C3+C4","v":3}]
["Çıkarma yapmak için F4 hücresini seçip =C3-C4 yazın ve Enter tuşuna basın. ",null,2,null,"Çıkarma (-) ",null,{"$f":"C3-C4","v":-1}]
["Çarpma yapmak için F5 hücresini seçip =C3*C4 yazın ve Enter tuşuna basın.\n",{"$nulls":3},"Çarpma (*) ",null,{"$f":"C3*C4","v":2}]
["Bölme yapmak için F6 hücresini seçip =C3/C4 yazın ve Enter tuşuna basın.\n",{"$nulls":3},"Bölme (/) ",null,{"$f":"C3/C4","v":0.5}]
["Buna bakın: C3 ve C4 hücrelerindeki sayıları değiştirdiğinizde formül sonuçları da otomatik olarak değişir.",{"$nulls":3},"Kuvvet (^) ",null,{"$f":"C3^C4","v":1}]
["EK KREDİ: Bir değeri kuvvet düzeyine yükseltmek için karat (^) sembolünü kullanın. Örneğin, =A1^A2. Bu sembolü Shift+6 ile girebilirsiniz. F7 hücresine şunu girin: =C3^C4."]
["Diğer ayrıntılar için devam edin"]
["Sonraki adım"]
["Formüller, hücreler ve aralıklar hakkında daha fazla bilgi"]
["Excel, satırlar ve sütunlar halinde gruplandırılmış bireysel hücrelerden oluşur. Satırlar sayılar ile ve sütunlar ise harfler ile belirtilir. 1 milyondan fazla satır ve 16.000’den fazla sütun bulunur. Bunların tamamına formül yazabilirsiniz. \n"]
["Formüllerde hücre başvuruları, hücre aralığı başvuruları, işleçler ve sabitler bulunabilir. Aşağıdakilerin tümü formül örneğidir:\n\n=A1+B1\n=10+20\n=TOPLA(A1:A10)\n\n"]
["Yukarıdaki üçüncü örneğimizde TOPLA işlevini kullandığımızı görebilirsiniz. Bir değeri veya değerleri alıp belirli bir şekilde hesaplayan ve bir sonuç döndüren önceden oluşturulmuş komutlara işlev denir. Örneğin, TOPLA işlevi belirttiğiniz hücre başvurularını veya aralıkları toplar. Bu örnekte, A1 ile A10 arasındaki hücreleri toplar. Excel’de Formüller sekmesinde bulabileceğiniz 400’den fazla işlev vardır.\n"]
["Formüller ve işlevler bir eşittir simgesiyle başlar. Ardından işlevin adı ve bağımsız değişkenleri (işlevin hesaplama için kullanacağı değerler) parantez içinde yazılır. \n"]
["Enter tuşuna bastığınızda formül onaylanır. Bunu yaptığınızda formül hesaplamayı yapar ve sonuç hücrede gösterilir. Formülün kendisini görmek için Şerit’in altındaki formül çubuğuna bakın veya hücredeki formülü görebileceğiniz Düzenleme moduna girmek için F2 tuşuna basın. Formülü sonlandırmak ve sonucu hesaplamak için Enter tuşuna basın.\n\n"]
["Bazı formül açıklamaları"]
["=10+20 formülündeki 10 ve 20 değerleri sabittir ve + işareti ise işleçtir."]
["=TOPLA(A1:A10) formülündeki TOPLA ifadesi işlev adıdır, açma ve kapatma parantezlerinin arasında formül bağımsız değişkenleri bulunur ve A1:A10 ise işlevin hücre aralığıdır."]
["=TOPLA(A1:A10;C1:C10) formülündeki TOPLA ifadesi işlev adıdır, açma ve kapatma parantezlerinin arasında formül bağımsız değişkenleri bulunur ve A1:A10;C1:C10 ise işlevin virgülle ayrılmış hücre aralıklarıdır."]
["YARARLI BİLGİLER: Hücrelere veya formüllere girdiğiniz değerlere sabit denir. =10+20 ile =A1+B1 aynı sonucu verebilir, ancak sabit değerleri kullanmak pek yararlı değildir. Neden mi? Çünkü sabit değerleri hücreyi seçip bakmadan kolayca görmek mümkün değildir. Bu nedenle daha sonra bunları değiştirmek zor olabilir. Sabit değerleri hücrelere yazarsanız daha sonra kolayca değiştirebilir ve formüllerinizde bunlara başvurabilirsiniz.\n\nÖrneğin: Aşağıda 12 değerini içeren sarı hücreyi seçin. TOPLA işlevini bir hücre aralığıyla birlikte kullandığımızı görebilirsiniz. Formüle doğrudan “4” veya “8” yazmadık. \n"]
["Önceki"]
["Sonraki"]
["Web’de daha fazla bilgi"]
["Excel’i hesap makinesi olarak kullanma"]
["Excel’deki formüllere genel bakış"]
["Excel işlevleri (kategoriye göre) "]
["Excel işlevleri (alfabetik) "]
["Ücretsiz çevrimiçi Excel eğitimi"]
{"$rows_empty":10}
[{"$nulls":9},"Değerler"]
[{"$nulls":9},4]
[{"$nulls":9},8]
[{"$nulls":9},{"$f":"SUM(J41:J42)","v":12}]

{"sheet":"İşlevlere Giriş","index":2,"n_rows":51,"n_cols":7,"rows_kept":51}
["İşlevlere giriş"]
["İşlevler, çeşitli matematiksel işlemleri gerçekleştirme, değerleri arama ve hatta tarih ve saatleri hesaplama gibi olanaklar tanır. TOPLA işlevini kullanarak değerleri toplamanın birkaç yolunu deneyelim.",null,"Meyve","Tutar",null,"Et ürünleri","Tutar"]
["Meyve değerine yönelik Miktar (D7) sütununa =TOPLA(D3:D6) ifadesini girin veya =TOPLA( yazıp aralığı farenizle seçin ve ardından Enter’a basın. Bu sayede D3, D4, D5 ve D6 hücrelerindeki değerler toplanır. Yanıtınız 170 olmalıdır.\n",null,"Elma",50,null,"Kırmızı et",50]
["Şimdi Otomatik Toplam özelliğini deneyelim. Et değerlerine yönelik sütunun altındaki hücreyi (G7 hücresi) seçip Formüller > Otomatik Toplam > TOPLA adımlarını izleyin. Excel’in formülü sizin için otomatik olarak girdiğini görürsünüz. Onaylamak için Enter tuşuna basın. Otomatik Toplam özelliği, en sık kullanılan tüm işlevleri sunar.\n",null,"Portakal",20,null,"Tavuk",30]
["Kolay bir klavye kısayolu da vardır. D15 hücresini seçip ctrl m tuşlarına ve ardından Enter’a basın. Bunu yaptığınızda TOPLA ifadesi otomatik olarak girilir.",null,"Muz",60,null,"Domuz eti",10]
["Diğer ayrıntılar için devam edin",null,"Limon",40,null,"Balık",50]
["EK KREDİ\nDaha önce denediğiniz yöntemlerden birini kullanarak BAĞ_DEĞ_SAY işlevini de deneyin. BAĞ_DEĞ_SAY işlevi, belirli bir aralıktaki hücrelerden kaç tanesinde sayı bulunduğunu sayar.",null,"TOPLA > ",{"$f":"SUM(D3:D6)","v":170},null,"TOPLA > "]
["Sonraki adım"]
["İşlevler hakkında daha fazla bilgi",null,"Öğe","Tutar",null,"Öğe","Tutar"]
["Formüller sekmesine gidin ve işlevlerin Metin, Tarih ve Zaman gibi kategorilere göre listelendiği İşlev Kitaplığı’na göz atın.  İşlev Ekle bölümü ada göre işlev aramanıza ve formülünüzü oluşturmanıza yardımcı olabilecek işlev sihirbazını başlatmanıza olanak tanır. \n\n= işaretine bastıktan sonra işlev adını yazmaya başladığınızda Excel, yazdığınız harflerle başlayan tüm işlevleri listeleyen Intellisense özelliğini başlatır. İstediğiniz işlevi bulduğunuzda Sekme tuşuna basın. Böylece Excel işlev adını otomatik olarak tamamlar ve açma parantezini girer. Ayrıca isteğe bağlı ve gerekli olan bağımsız değişkenleri de görüntüler. \n\n\n\nŞimdi birkaç işlevi yakından inceleyelim. TOPLA işlevi şu şekilde yapılandırılmıştır:",null,"Ekmek",50,null,"Ekmek",50]
["TOPLA işlevi konuşabilseydi şunları söylerdi: D35 - D38 aralığındaki hücrelerde ve H sütununda bulunan tüm değerlerin toplamını döndür. TOPLA ifadesi işlevin adıdır, D35:D38 ifadesi hemen her zaman gerekli olan ilk aralık bağımsız değişkenidir ve H:H ise virgülle ayrılan ikinci aralık bağımsız değişkenidir. Şimdi bağımsız değişken gerektirmeyen bir örnek deneyelim.\n",null,"Donut",100,null,"Donut",100]
["BUGÜN işlevi, bugünün tarihini döndürür. Excel yeniden hesaplama yaptığında otomatik olarak güncelleştirilir.",null,"Kurabiye",40,null,"Kurabiye",40]
["BUNU İNCELEYİN\nBu hücreleri seçin. Sonra, Excel penceresinin sağ alt köşesindeki alt çubukta TOPLAM: 170 ifadesini bulun. Durum Çubuğu adı verilen bu kısım, seçilen bir hücre veya aralığın toplamını ya da diğer detaylarını hızla görmeyi sağlar. ",null,"Pasta",50,null,"Pasta",50]
["ÖNEMLİ AYRINTI\nBu hücrede çift tıklayın. Sonlara doğru 100 değerini görürsünüz. Böyle bir formüle sayı eklemek mümkün olsa da gerçekten zorunlu olmadıkça yapılmaması önerilir. Bu sabit olarak bilinir ve formülün sabit içerdiğini kolayca unutabilirsiniz. Bunun yerine, F51 gibi başka bir hücreye başvurmanızı öneririz. Bu şekilde, sabit değer formül içinde gizli olmaz ve kolayca görülebilir. ",null,"Turta",20,null,"Turta",20]
["Web’de daha fazla bilgi",null,"TOPLA > ",null,null,"BAĞ_DEĞ_SAY >"]
["TOPLA işlevi hakkında bilinmesi gereken her şey"]
["Sayıları toplamak için Otomatik Toplam özelliğini kullanın"]
["BAĞ_DEĞ_SAY işlevi hakkında bilinmesi gerekenler"]
["Ücretsiz çevrimiçi Excel eğitimi"]
["Başa dön"]
["Sonraki adım"]
{"$rows_empty":12}
[null,null,"Meyve","Tutar"]
[null,null,"Elma",50]
[null,null,"Portakal",20]
[null,null,"Muz",60]
[null,null,"Limon",40]
[null,null,"TOPLA > ",{"$f":"SUM(D35:D38)","v":170}]
[]
[]
[]
[]
[null,null,"Öğe","Tutar"]
[null,null,"Araba",20]
[null,null,"Kamyon",10]
[null,null,"Bisiklet",10]
[null,null,"Paten",40]
[]
[{"$nulls":3},"Toplam:",null,"Ek Değer","Yeni Toplam"]
[{"$nulls":3},{"$f":"SUM(D45:D48,100)","v":180},null,100,{"$f":"SUM(D45:D48,F51)","v":180}]

{"sheet":"ORTALAMA","index":3,"n_rows":15,"n_cols":7,"rows_kept":15}
["ORTALAMA işlevi"]
["Hücre aralığındaki sayıların ortalamasını almak için ORTALAMA işlevini kullanın.",null,"Meyve","Tutar",null,"Et ürünleri","Tutar"]
["D7 hücresine tıklayın ve bir ORTALAMA işlevi eklemek için Otomatik Toplam özelliğini kullanın.",null,"Elma",50,null,"Kırmızı et",50]
["Şimdi G7 hücresine tıklayın ve =ORTALAMA(G3:G6) yazarak el ile bir ORTALAMA işlevi girin. ",null,"Portakal",20,null,"Tavuk",30]
["D15 hücresinde Otomatik Toplam’ı kullanabilir veya diğer bir ORTALAMA işlevi girmek üzere el ile yazabilirsiniz. ",null,"Muz",60,null,"Domuz eti",10]
["BUNU İNCELEYİN\nHerhangi bir sayı aralığı seçin ve bir Ortalama için Durum Çubuğuna bakın.\n",null,"Limon",40,null,"Balık",50]
["Önceki sayfayı etkinleştir",null,"ORTALAMA >",null,null,"ORTALAMA >"]
["Sonraki sayfaya git"]
["EK KREDİ\nBurada ORTANCA veya MOD’u kullanmayı deneyin. \n\nORTANCA veri kümesinin ortasındaki değeri verirken \nMOD en çok olanı verir.\n",null,"Öğe","Tutar",null,"Öğe","Tutar"]
["Web’de daha fazla bilgi edinebileceğiniz bağlantılar",null,"Ekmek",50,null,"Ekmek",50]
["ORTALAMA işlevi hakkında bilinmesi gereken her şeyi web’den öğrenmek için seçin",null,"Donut",100,null,"Donut",100]
["ORTANCA işlevi hakkında bilinmesi gereken her şeyi web’den öğrenmek için seçin",null,"Kurabiye",40,null,"Kurabiye",40]
["ENÇOK_OLAN işlevi hakkında bilinmesi gereken her şeyi web’den öğrenmek için seçin",null,"Pasta",50,null,"Pasta",50]
["Web’de ücretsiz Excel eğitimi hakkında bilgi edinmek için seçin",null,"Turta",20,null,"Turta",20]
[null,null,"ORTALAMA >"]

{"sheet":"MIN VE MAKS","index":4,"n_rows":15,"n_cols":7,"rows_kept":15}
["MİN ve MAK işlevleri"]
["Bir hücre aralığındaki en küçük sayıyı bulmak için MİN işlevini kullanın.",null,"Meyve","Tutar",null,"Et ürünleri","Tutar"]
["Bir hücre aralığındaki en büyük sayıyı bulmak için MAK işlevini kullanın.",null,"Elma",50,null,"Kırmızı et",50]
["D7 hücresini seçin ve bir MİN işlevi eklemek için Otomatik Toplam Sihirbazı’nı kullanın.\n",null,"Portakal",20,null,"Tavuk",30]
["Şimdi G7 hücresini seçin ve =MAK(G3:G6) yazarak el ile bir MAK işlevi girin.\n",null,"Muz",60,null,"Domuz eti",10]
["D15 hücresinde Otomatik Toplam Sihirbazı’nı kullanabilir veya yazarak bir MİN ya da MAK işlevi girebilirsiniz. \n",null,"Limon",40,null,"Balık",50]
["Web’de daha fazla bilgi\n",null,"MİN >",null,null,"MAK >"]
["MİN işlevi hakkında bilinmesi gerekenler"]
["MAK işlevi hakkında bilinmesi gerekenler",null,"Öğe","Tutar",null,"Öğe","Tutar"]
["Ücretsiz çevrimiçi Excel eğitimi",null,"Ekmek",50,null,"Ekmek",50]
["YARARLI BİLGİLER\nMİN veya MAK işlevini birden fazla aralıkla kullanabilir ya da değerler yazarak bunların en büyük veya en küçük olanlarını görüntüleyebilirsiniz. Örneğin, =MİN(A1:A10;B1:B10) veya =MAK(A1:A10;B1). Buradaki B1 hücresinde 10 gibi bir eşik değeri bulunur ve bu durumda formül, asla 10’dan küçük bir değeri döndürmez.\n",null,"Donut",100,null,"Donut",100]
[null,null,"Kurabiye",40,null,"Kurabiye",40]
[null,null,"Pasta",50,null,"Pasta",50]
[null,null,"Turta",20,null,"Turta",20]
[null,null,"MİN veya MAK >",{"$nulls":3},{"$f":"MIN(G10:G14,10)","v":10}]

{"sheet":"Tarih ve Saat","index":5,"n_rows":47,"n_cols":6,"rows_kept":47,"merged":[[4,2,4,3],[26,2,26,3],[30,2,30,3],[44,2,44,3]]}
["Tarih işlevleri"]
["Excel, bilgisayarınızın bölgesel ayarlarına dayalı olarak geçerli tarihi verebilir. Tarihlerde toplama ve çıkarma da yapabilirsiniz."]
["Bugünün tarihini gösteren BUGÜN işlevine göz atın. Bunlar canlı veya geçici işlevlerdir. Dolayısıyla çalışma kitabınızı yarın açtığınızda yarının tarihini görürsünüz. D6 hücresine =BUGÜN() yazın. \n"]
["Tarihleri Çıkarma - D7 hücresine bir sonraki doğum gününüzü GG.AA.YY biçiminde yazın ve D8 hücresinde =D7-D6 formülünü kullanarak Excel’in doğum gününüze kaç gün kaldığını göstermesini sağlayın.\n"]
["Tarihleri Toplama - Diyelim ki bir faturanın son ödeme tarihinin ne zaman olduğunu veya kütüphane kitabını ne zaman iade etmeniz gerektiğini öğrenmek istiyorsunuz. Bunu öğrenmek için bir tarihe günler ekleyebilirsiniz. D10 hücresine rastgele bir gün sayısı girin. D11 hücresinde bugüne dayalı olarak son tarihi hesaplamak için =D6+D10 formülünü ekledik.\n",null,"Tarih işlevleri"]
["YARARLI BİLGİLER\nExcel, tarihleri ve saatleri 1 Ocak 1900'den başlayan günlerin sayısına göre tutar. Saatler, dakikaya dayalı olarak bir günün kesirli bölümleri halinde tutulur. Dolayısıyla 01.01.2017 12:30 aslında 42736.5208 olarak depolanır. Tarih veya saat bu şekilde gözüküyorsa Ctrl+1 > Sayı > Tarih ve Saat biçimlendirmesi seç’e basın. ",null,"Bugünün tarihi:",null,null,{"$f":"IF(D6=TODAY(),\"İşte bu kadar!\",\"\")","v":""}]
["ÖNEMLİ AYRINTI\nDoğum gününüzü henüz girmediğinizden Excel’in negatif bir sayı görüntülemesini istemiyorsanız, “Eğer D7 sıfıra eşitse, hiçbir şey gösterme, değilse D7 eksi D6 sonucunu göster” ifadesine karşılık gelen şu EĞER işlevini kullanabilirsiniz: =EĞER(D7=\"\";\"\";D7-D6)\n",null,"Doğum gününüz:"]
["Zaman işlevleri",null,"Doğum gününüze kalan gün:",{"$f":"D7-D6","v":0}]
["Excel, bilgisayarınızın bölgesel ayarlarına dayalı olarak geçerli saati verebilir. Saatlerde toplama ve çıkarma da yapabilirsiniz. Örneğin, bir çalışanın her hafta kaç saat çalıştığını takip etmeniz, maaş ve fazla mesaisini hesaplamanız gerekebilir.\n"]
["D28 hücresinde, geçerli saati veren ve Excel her hesaplama yaptığında güncelleştirilecek olan =ŞİMDİ() formülünü yazın. Saat biçimini değiştirmeniz gerekiyorsa Ctrl+1 > Sayı > Saat > İstediğiniz biçimi seçin seçeneğine gidin.\n",null,"Ödemesiz dönem günleri:"]
["Zamanlar arasındaki saatleri toplama - D36 hücresinde, birinin başlangıç ve bitiş saatlerini hesaplayıp bundan öğle yemeği için harcadığı zamanı çıkaran =((D35-D32)-(D34-D33))*24 formülünü yazdık. Formülün sonundaki *24, Excel’in gördüğü günün kesirsel kısmını saatlere dönüştürür. Ancak hücreyi sayı olarak biçimlendirmeniz gerekir. Bunu yapmak için, Giriş > Biçim > Hücreler (Ctrl+1) > Sayı > Sayı > 2 basamak seçeneğine gidin.\n\n",null,"Fatura son tarihi:",{"$f":"D6+D10","v":"00:00:00"}]
["Bu formül konuşabilseydi şunları söylerdi: “Çıkış Saati’ni alıp Giriş Saati’nden çıkar. Ardından Öğle Yemeği Sonu/Başlangıç saatlerini çıkar ve Excel’in kesirsel zamanını saatlere dönüştürmek için 24 ile çarp” veya =((Çıkış Saati - Giriş Saati)-(Öğle Yemeği Başlangıcı - Öğle Yemeği Sonu))*24.\n"]
["Önceki"]
["Sonraki"]
["Web’de daha fazla bilgi"]
["BUGÜN işlevi hakkında bilinmesi gereken her şey"]
["ŞİMDİ işlevi hakkında bilinmesi gereken her şey"]
["TARİH işlevi hakkında bilinmesi gereken her şey"]
["Ücretsiz çevrimiçi Excel eğitimi"]
{"$rows_empty":7}
[null,null,"Zaman işlevleri"]
[null,null,"Geçerli Saat:"]
[]
[]
[null,null,"Günlük Çalışılan Saat"]
[null,null,"Giriş Saati:","08:00:00"]
[null,null,"Öğle Yemeği Sonu:","12:00:00"]
[null,null,"Öğle Yemeği Başlangıcı:","13:00:00"]
[null,null,"Çıkış Saati:","17:00:00"]
[null,null,"Toplam Saat:",{"$f":"((D35-D32)-(D34-D33))*24","v":8.000000000000002}]
{"$rows_empty":8}
[null,null,"Statik Tarih ve Saat"]
[null,null,"Tarih:","2017-09-27"]
[null,null,"Saat:","08:52:00"]

{"sheet":"Metin ve sayıları birleştirme","index":6,"n_rows":37,"n_cols":6,"rows_kept":37,"merged":[[26,2,26,3],[30,2,30,3],[34,2,34,3]]}
["Farklı hücrelerdeki metinleri birleştirme"]
["Excel’de pek çok durumda farklı hücrelerdeki metinleri birleştirmeniz gerekebilir. Burada çok sık karşılaşılan bir durumu inceleyeceğiz. Adları ve soyadlarını ad, soyadı veya tam ad olarak birleştirmek istediğinizi varsayalım. Excel bunu Üst+6 tuşlarını kullanarak girebileceğiniz Ampersand (&) işaretiyle yapmamıza olanak tanır.\n",null,"Ad","Soyadı","Soyadı, Ad","Tam Ad"]
["Adlarla soyadlarını birleştirmek için E3 hücresine =D3&C3 ifadesini girin. \n",null,"Merve","Demir",{"$f":"D3&\", \"&C3","v":"Demir, Merve"},{"$f":"C3&\" \"&D3","v":"Merve Demir"}]
["DemirMerve pek doğru görünmüyor. Virgül ve boşluk eklememiz gerekiyor. Bunu yapmak için tırnak işaretlerini kullanarak bir sınama dizesi oluşturacağız. Bu kez şu ifadeyi girin: =D3&\", \"&C3. &\", \"& bölümü, hücrelerdeki metni bir virgül ve boşlukla birleştirmemizi sağlıyor.\n",null,"Burak","Kuzey"]
["Tam adı oluşturmak için adı ve soyadını birleştireceğiz ancak virgül olmadan yalnızca boşluk kullanacağız. F3 hücresine şu ifadeyi girin: =C3&\" \"&D3.\n",null,"Osman","Şahin"]
["Diğer ayrıntılar için devam edin",null,"Meryem","Öztürk"]
["Sonraki",null,"Salih","Özkan"]
["Metin ve sayıları bir arada kullanma",null,"Yusuf","Çelik"]
["Şimdi & ifadesini kullanarak yalnızca metinleri değil, metinle sayıları birleştireceğiz\n\nC28:D29 aralığındaki hücrelere bakın. Tarih ve saatin ayrı hücrelerde olduğunu görüyor musunuz? Bunları & sembolünü kullanarak C32:C33 aralığında gördüğünüz gibi birleştirebilirsiniz, ancak bu da pek doğru olmaz, değil mi? Ne yazık ki Excel, sayıları biçimlendirmek istediğinizi bilmiyor. Bu nedenle bunları en temel biçimine dönüştürüyor ve bu durumda Seri tarih biçimini kullanıyor. Sonuç sınama dizesinde istediğiniz görünümü elde edebilmek için, formülün sayı bölümünü nasıl biçimlendireceğiniz Excel’e açıkça söylememiz gerekiyor. METNEÇEVİR işlevi ve bir biçim kodu ile bunu yapabilirsiniz.",null,"Recep","Şimşek"]
["C36 hücresine şunu girin: =C28&\" \"&METNEÇEVİR(D28;\"G.AA.YYYY\"). G.AA.YYYY biçimi, ABD’de kullanılan Gün.Ay.Yıl düzenidir. Örneğin, 25.09.2017.\n",null,"Zehra","Aydın"]
["C37 hücresine şunu girin: =C29&\" \"&METNEÇEVİR(D29;\"SS:DD\"). SS:DD biçimi, ABD’de kullanılan Saat:Dakika düzenidir. Örneğin, 13:30.\n\n"]
["BUNU İNCELEYİN\nFormüller, özellikle de büyük formüller, bazen zor olabilir. Ancak bunları şu şekilde boşluklarla parçalara ayırabilirsiniz:\n\n=C28 & \" \" & METNEÇEVİR(D28,\"AA/GG/YYYY\")"]
["KEŞFETMEYE DEĞER\nHangi biçim kodunu kullanacağınızı bilmiyorsanız, dilediğiniz hücreyi biçimlendirmek için Ctrl+1 > Sayı tuşlarını kullanabilirsiniz. Sonra İsteğe Uyarlanmış seçeneğini belirleyin. Görüntülenen biçim kodunu kopyalayıp formülünüzde kullanabilirsiniz."]
["Web’de daha fazla bilgi"]
["METNEÇEVİR işlevi hakkında bilinmesi gereken her şey"]
["Metin ve sayıları birleştirme"]
["Ücretsiz çevrimiçi Excel eğitimi"]
{"$rows_empty":9}
[null,null,"Metin ve sayıları kullanma"]
[null,null,"Bugünün tarihi:",{"$f":"TODAY()","v":"2019-10-10"}]
[null,null,"Geçerli saat:",{"$f":"NOW()","v":43748.73939537037}]
[]
[null,null,"Metin ve sayıları birleştirme"]
[null,null,{"$f":"C28&\" \"&D28","v":"Bugünün tarihi: 43748"}]
[null,null,{"$f":"C29&\" \"&D29","v":"Geçerli saat: 43748,7393953704"}]
[]
[null,null,"Metin ve sayıları biçimlendirme"]
[null,null,{"$f":"C28 &\" \"& TEXT(D28,\"G.AA.YYYY\")","v":"Bugünün tarihi: 10.10.2019"}]
[null,null,{"$f":"C29&\" \"&TEXT(D29,\"SS:DD\")","v":"Geçerli saat: 17:44"}]

{"sheet":"EĞER ifadeleri","index":7,"n_rows":37,"n_cols":6,"rows_kept":37,"merged":[[7,2,7,3]]}
["EĞER ifadeleri"]
["EĞER ifadeleri koşullar arasında mantıksal karşılaştırmalar yapmanıza olanak tanır. Bir EĞER ifadesi genellikle bir koşul doğruysa bir şeyin yapılmasını ve aksi takdirde başka bir şeyin yapılmasını söyler. Formüller metin, değer veya daha fazla hesaplama getirebilir."]
["D9 hücresine =EĞER(C9=\"Elma\";DOĞRU;YALNIŞ) yazın. Doğru yanıt DOĞRU sonucunu verir. \n"]
["D9’u D10’a kopyalayın. Buradaki yanıt YANLIŞ olmalıdır çünkü portakal bir elma değildir.\n"]
["D12 hücresindeki formüle bakarak başka bir örnek deneyin. =EĞER(C12<100;\"100’den az\";\"100’le eşit veya daha büyük\") formülüyle başlamıştık. C12 hücresine 100’den daha büyük bir değer girerseniz ne olur?\n"]
["ÖNEMLİ AYRINTI\nDOĞRU ve YANLIŞ Excel formüllerindeki diğer kelimelerden farklıdır; tırnak içinde yazılmaları gerekmez ve Excel bunları otomatik olarak büyük harfle yazar. Sayıların da tırnak içinde olması gerekmez. Evet ve Hayır gibi metinlerin şu şekilde tırnak içinde olması gerekir: \n=EĞER(C9=\"Elma\";\"Evet\";\"Hayır\")"]
["Diğer ayrıntılar için devam edin"]
["Sonraki",null,"EĞER ifadeleri"]
["Başka işlevli EĞER ifadesi ",null,"Elma"]
["EĞER deyimleri, belirli bir koşulun yerine getirilmesi durumunda ek hesaplamaların yapılmasına zorlayabilir. Burada Satış Vergisinin uygulanmasının gerekip gerekmediğini görmek ve koşul doğruysa bunu hesaplamak üzere bir hücreyi değerlendireceğiz.\n",null,"Portakal"]
["Hücre F33’e, SatışVergisi’nin 0,0825 değerine sahip bir Adlandırılmış Aralık olarak ayarlandığı =EĞER(E33=\"Evet\";F31*SatışVergisi;0) Formülümüz E33 hücresinin değeri Evet ise F31 hücresinin SatışVergisi ile çarpılmasını, diğer durumlarda ise 0 değerini göstermesini söyler.\n\nHesaplama değişikliğini görmek için E33 hücresindeki Evet değerini Hayır olarak değiştirmeyi deneyin."]
["Sonra, gerektiğinde nakliyenin hesaplanması için bir EĞER deyimi ekledik. F35 hücresinde =EĞER(E35=\"Evet\";TOPLA(D28:D29)*1.25;0) formülünü göreceksiniz. Bu formül \"E35 hücresinin değeri Evet ise yukarıdaki tablodaki Miktar sütununun toplamı alınarak 1,25 ile çarpılmasını, diğer durumlarda ise 0 değerinin gösterilmesini\" söyler.\n",null,50,{"$f":"IF(C12<100,\"100’den az\",\"100’le eşit veya daha büyük\")","v":"100’den az"}]
["Ardından, F35 hücresindeki 1.25 değerini \"Nakliye\" olarak değiştirin. Yazmaya başladığınızda Excel’in otomatik düzeltmesi bu değeri bulur. Değer bulunduğunda girmek için Tab’a basın. Bu, Formüller > Ad Tanımla’dan girdiğimiz bir Adlandırılmış Aralık’tır. Artık nakliye masrafını değiştirmeniz gerektiğinde bunu tek bir yerden yapmanız yeterli olacaktır ve Nakliye adını çalışma kitabındaki herhangi bir yerde kullanabilirsiniz.\n\n"]
["YARARLI BİLGİLER\nBir formül oluşturduğunuzda Excel otomatik olarak formülde başvurulan tüm aralıkların etrafına renkli kenarlar ekler ve formülde karşılık gelen aralıklar aynı renkte olur. F33 hücresini seçip formülü düzenlemek için F2’ye basarak bunu görebilirsiniz."]
["UZMAN İPUCU\nAdlandırılmış Aralıklar terimler ve değerleri tek bir yerde tanımlayıp ardından tüm çalışma kitabında yeniden kullanmanıza olanak sağlar. Bu çalışma kitabındaki tüm adlandırılmış aralıkları Formüller > Ad Yöneticisi’ne giderek görebilirsiniz. Daha fazla bilgi edinmek için buraya tıklayın\n"]
["Önceki"]
["Sonraki"]
["Web’de daha fazla bilgi"]
["EĞER işlevi hakkında bilinmesi gereken her şey"]
["ÇOKEĞER işlevi hakkında bilinmesi gereken her şey"]
["Gelişmiş EĞER deyimleri"]
["Ücretsiz çevrimiçi Excel eğitimi"]
[]
[]
[]
[]
[null,null,"Öğe","Miktar","Maliyet","Toplam"]
[null,null,"Widget",2,{"v":9.760711585683554,"d":"9.76 ₺"},{"$f":"'EĞER ifadeleri'!$E$28:$E$29*'EĞER ifadeleri'!$D$28:$D$29","v":{"v":19.521423171367108,"d":"19.52 ₺"}}]
[null,null,"Doohickey",3,{"v":3.4189202461080024,"d":"3.42 ₺"},{"$f":"'EĞER ifadeleri'!$E$28:$E$29*'EĞER ifadeleri'!$D$28:$D$29","v":{"v":10.256760738324008,"d":"10.26 ₺"}}]
[]
[{"$nulls":3},"Ara toplam",{"$f":"SUM('EĞER ifadeleri'!$E$28:$E$29)","v":{"v":13.179631831791557,"d":"13.18 ₺"}},{"$f":"SUM('EĞER ifadeleri'!F28:F29)","v":{"v":29.778183909691116,"d":"29.78 ₺"}}]
[]
[{"$nulls":3},"Satış Vergisi?","Evet",{"$f":"IF(E33=\"Evet\",F31*SatışVergisi,0)","v":{"v":2.456700172549517,"d":"2.46 ₺"}}]
[]
[{"$nulls":3},"Nakliye?","Evet",{"$f":"IF(E35=\"Evet\",SUM(D28:D29)*1.25,0)","v":{"v":6.25,"d":"6.25 ₺"}}]
[]
[{"$nulls":3},"Toplam",null,{"$f":"SUM(F33,F31,F35)","v":{"v":38.48488408224063,"d":"38.48 ₺"}}]

{"sheet":"DÜŞEYARA","index":8,"n_rows":43,"n_cols":7,"rows_kept":43}
["DÜŞEYARA"]
["DÜŞEYARA, Excel en yaygın olarak kullanılan ve bizim de en sevdiğimiz işlevlerden biridir. DÜŞEYARA, soldaki sütunda bir değeri arar ve eğer bulursa, sağdaki sütunda bilgi döndürür. DÜŞEYARA şunu söyler:\n"]
["=DÜŞEYARA(A1;B:C;2;YANLIŞ)"]
["Ne aramak istiyorsunuz?"]
["Bulursanız sağa doğru kaçıncı sütunda değeri görmek istiyorsunuz?"]
["Nerede aramak istiyorsunuz?"]
["Tam bir eşleşme mi arıyorsunuz yoksa yaklaşık bir değer mi?"]
["D22 hücresine şunu girin: =DÜŞEYARA(C22;C17:D20;2;YANLIŞ). Elmalar için doğru yanıt 50'dir. DÜŞEYARA, Elmalar değerini aradı ve buldu. Ardından bir sütun sağa geçip miktarı döndürdü.\n\n"]
["Şimdi G22 hücresine giderek Et bölümünde kendiniz deneyin. Şunu yazmanız gerekir: =DÜŞEYARA(F22;F17:G20;2;YANLIŞ).\n\n"]
["DENEME\nAçılan listelerden farklı öğeler seçmeyi deneyin. Sonuç hücrelerinin anında güncelleştirilip yeni değerleri aldığını görebilirsiniz."]
["Diğer ayrıntılar için devam edin"]
["Sonraki"]
["DÜŞEYARA ve #YOK"]
["Elbette DÜŞEYARA’nın istediğiniz sonucu bulamayıp bir hata (#YOK) döndürdüğü durumlarla da karşılaşabilirsiniz. Bu durum, arama değerinin mevcut olmaması veya başvuru hücresinin herhangi bir değere sahip olmamasından kaynaklanabilir.\n"]
["Arama değerinin mevcut olduğundan eminseniz ancak arama hücresi boş olduğunda hatayı gizlemek istiyorsanız bir EĞER deyimi kullanabilirsiniz. Bu durumda D43 hücresinde mevcut DÜŞEYARA formülümüzü şu şekilde düzenleriz:\n\n=EĞER(C43=\"\";\"\";DÜŞEYARA(C43;C37:D41;2;YANLIŞ))\n\nBu ifade, C43 hücresi hiçbir değere eşit değilse (“”) hiçbir şey döndürülmeyeceğini, aksi takdirde DÜŞEYARA’nın sonuçlarının döndürüleceğini söyler. İkinci kapatma parantezinin formülün sonunda olduğuna dikkat edin. Bu parantez EĞER deyimini kapatır.\n"]
["Arama değerinizin mevcut olduğundan emin değilseniz ancak yine de #YOK hatasını gizlemek istiyorsanız, G43 hücresinde EĞERHATA adlı hata işleme işlevini kullanabilirsiniz: =EĞERHATA(DÜŞEYARA(F43;F37:G41;2;YANLIŞ);\"\"). EĞERHATA, DÜŞEYARA geçerli bir sonuç döndürürse bunun görüntüleneceğini, aksi takdirde hiçbir şey görüntülenmeyeceğini (\"\") söyler. Burada hiçbir şey görüntülenmiyor (“”) ancak dilerseniz sayı (0, 1, 2 gibi) veya “Formül doğru değil” gibi bir metin kullanabilirsiniz.\n",null,"Meyve","Tutar",null,"Et ürünleri","Tutar"]
["ÖNEMLİ AYRINTI\nEĞERHATA boş bir hata işleyicisidir, yani formülünüzün döndürebileceği tüm hataları gizler. Bu, Excel’in size formülünüzde düzeltilmesi gereken gerçek bir hata olduğuna ilişkin bir bildirim göndermesi durumunda soruna neden olabilir.\n\nBu nedenle formüllerinizin düzgün çalıştığından kesinlikle emin değilseniz hata işleyicisi eklemeyin.",null,"Elma",50,null,"Kırmızı et",50]
["Önceki",null,"Portakal",20,null,"Tavuk",30]
["Sonraki",null,"Muz",60,null,"Domuz eti",10]
["Web’de daha fazla bilgi",null,"Limon",40,null,"Balık",50]
["DÜŞEYARA işlevi hakkında bilinmesi gereken her şey"]
["İNDİS/KAÇINCI işlevleri hakkında bilinmesi gereken her şey",null,"Elma",null,null,"Domuz eti"]
["EĞERHATA işlevi hakkında bilinmesi gereken her şey"]
["Çalışma sayfası verilerini çözümlemek için PivotTable kullanma"]
["Ücretsiz çevrimiçi Excel eğitimi"]
{"$rows_empty":9}
[null,null,"D42 hücresindeki TOPLA işlevi konuşabilseydi şunu derdi: D38, D39, D40 ve D41 hücrelerindeki değerleri topla."]
[null,null,"Öğe","Tutar",null,"Öğe","Tutar"]
[null,null,"Ekmek",50,null,"Ekmek",50]
[null,null,"Donut",100,null,"Donut",100]
[null,null,"Kurabiye",40,null,"Kurabiye",40]
[null,null,"Pasta",50,null,"Pasta",50]
[null,null,"Turta",20,null,"Turta",20]
[]
[{"$nulls":3},{"$f":"VLOOKUP(C43,C37:D41,2,FALSE)","v":{"$error":"#N/A"}},null,"Börek",{"$f":"IFERROR(VLOOKUP(F43,F37:G41,2,FALSE),\"\")","v":""}]

{"sheet":"Koşullu İşlevler","index":9,"n_rows":123,"n_cols":34,"rows_kept":123}
["Koşullu işlevler - ETOPLA"]
["Koşullu işlevler, verilen bir koşula ve belirttiğiniz ölçüte göre toplama, ortalama alma, sayma ve bir aralığın en küçük veya en büyük noktasını alma gibi işlemleri yapmanızı sağlar. Listedeki tüm meyveler arasında kaç tane elma olduğunu saymak, buna bir örnek olarak verilebilir. Dilerseniz Florida türünden kaç portakal olduğuna bakabilirsiniz.",null,"Meyve","Tutar",null,"Meyve","Tür","Tutar",{"$nulls":17},"Meyve",null,"Elma",null,"Portakal",null,"Muz",null,"Limon"]
["ETOPLA işlevi bir aralıkta, başka bir aralıktaki belirli bir ölçüte göre toplama yapmanızı sağlar. Örneğin, ne kadar Elmanız olduğunu bulabilirsiniz. D17 hücresini ve türün seçin =ETOPLA(C3:C14;C17;D3:D14). ETOPLA şu şekilde yapılandırılır:",null,"Elma",50,null,"Elma","Fuji",50,{"$nulls":17},"Elma",null,"Fuji",null,"Florida",null,"Cavendish",null,"Sert"]
["=ETOPLA(C3:C14;C17;D3:D14)",null,"Portakal",20,null,"Portakal","Florida",20,{"$nulls":17},"Portakal",null,"Tatlı",null,"Yafa",null,"Küçük",null,"Eureka"]
["Hangi aralığa bakmak istiyorsunuz?",null,"Muz",60,null,"Muz","Cavendish",60,{"$nulls":17},"Muz"]
["Hangi değeri (metin veya sayı) aramak istiyorsunuz?",null,"Limon",40,null,"Limon","Sert",40,{"$nulls":17},"Limon"]
["Bulunan her eşleşme için hangi aralığı toplamak istiyorsunuz?",null,"Elma",50,null,"Elma","Tatlı",50]
["ÇOKETOPLA, ETOPLA ile aynıdır ancak birden çok ölçüt kullanmanıza olanak tanır. Dolayısıyla bu örnekte yalnızca Meyve yerine Meyve ve Türü arayabilirsiniz. H17 hücresini ve türünü seçin =ÇOKETOPLA(H3:H14;F3:F14;F17;G3:G14;G17). ÇOKETOPLA şu şekilde yapılandırılmıştır:\n",null,"Portakal",20,null,"Portakal","Yafa",20]
["=ÇOKETOPLA(H3:H14;F3:F14;F17;G3:G14;G17)",null,"Muz",60,null,"Muz","Küçük",60]
["Hangi aralığı toplamak istiyorsunuz?",null,"Limon",40,null,"Limon","Eureka",40]
["Bu, eşleşmelerin aranacağı ilk aralıktır",null,"Elma",50,null,"Elma","Tatlı",50]
["Bu, ilk eşleşme için olan ölçüttür",null,"Portakal",20,null,"Portakal","Yafa",20]
["Bu, eşleşmelerin aranacağı ikinci aralıktır",null,"Muz",60,null,"Muz","Cavendish",60]
["Bu, ikinci eşleşme için olan ölçüttür",null,"Limon",40,null,"Limon","Eureka",40]
["UZMAN İPUCU\nMeyve ve Tür hücrelerinin her birinde, farklı meyveler seçebileceğiniz açılan listeler bulunur. Formüllerin otomatik olarak güncelleştirildiğini görmek için deneyin."]
["Diğer ayrıntılar için devam edin",null,"Meyve","ETOPLA",null,"Meyve","Tür","ÇOKETOPLA"]
["Sonraki adım",null,"Elma",null,null,"Portakal","Florida"]
["Koşullu İşlevler - EĞERSAY"]
["EĞERSAY ve ÇOKEĞERSAY olsun ölçütlere göre bir aralıktaki değerleri sayabilir belirtin. Diğer EĞER ve ÇOKEĞER işlevlerinden biraz farklıdırlar, yalnızca ölçüt aralığı ve ölçütleri vardır. Özetlemek üzere bir aralığı değerlendirip ardından diğer aralığa bakmazlar."]
["D64 hücresini seçin ve =EĞERSAY(C50:C61;C64) yazın. EĞERSAY şu şekilde yapılandırılmıştır:"]
["=EĞERSAY(C50:C61;C64)"]
["Hangi aralığa bakmak istiyorsunuz?"]
["Hangi değeri (metin veya sayı) aramak istiyorsunuz?"]
["ÇOKEĞERSAY, ETOPLA ile aynıdır ancak birden çok ölçüt kullanmanıza olanak tanır. Dolayısıyla bu örnekte yalnızca Meyve yerine Meyve ve Cins arayabilirsiniz. H64 hücresini seçin ve =ÇOKEĞERSAY(F50:F61;F64;G50:G61;G64) yazın. ÇOKEĞERSAY şu şekilde yapılandırılmıştır:\n"]
["=ÇOKEĞERSAY(F50:F61;F64;G50:G61;G64)"]
["Bu, sayılacak ilk aralıktır"]
["Bu, ilk eşleşme için olan ölçüttür"]
["Bu, sayılacak ikinci aralıktır"]
["Bu, ikinci eşleşme için olan ölçüttür"]
["Diğer ayrıntılar için devam edin"]
["Sonraki"]
["Daha fazla koşullu işlev"]
["ETOPLA, ÇOKETOPLA, EĞERSAY ve ÇOKEĞERSAY işlevlerini gördünüz. Şimdi EĞERORTALAMA/ÇOKEĞERORTALAMA, ÇOKEĞERMAK ve ÇOKEĞERMİN gibi işlevleri kendiniz deneyebilirsiniz. Tamamı aynı biçimde oluşturulduğundan bir formül yazdıktan sonra işlev adını değiştirerek istediğinizi kullanabilirsiniz. E106 hücresi için ihtiyaç duyacağınız tüm işlevleri yazdık. Dilerseniz bunları kopyalayıp yapıştırabilir veya denemek için kendiniz yazabilirsiniz.\n\nETOPLA \t            =ETOPLA(C92:C103;C106;E92:E103) \nÇOKETOPLA \t            =ÇOKETOPLA(E92:E103;C92:C103;C106;D92:D103;D106) \nEĞERORTALAMA         =EĞERORTALAMA(C92:C103;C106;E92:E103) \nÇOKEĞERORTALAMA  =ÇOKEĞERORTALAMA(E92:E103;C92:C103;C106;D92:D92;D106)\nEĞERSAY \t            =EĞERSAY(C92:C103;C106)\nÇOKEĞERSAY \t            =ÇOKEĞERSAY(C92:C103;C106;D92:D103;D106) \nÇOKEĞERMAK \t            =ÇOKEĞERMAK(E92:E103;C92:C103;C10;D92:D103;D106)\nÇOKEĞERMİN \t            =ÇOKEĞERMİN(E92:E103;C92:C103;C106;D92:D103;D106)\n"]
["Diğer ayrıntılar için devam edin"]
["Sonraki"]
["Değer bağımsız değişkenine sahip ETOPLA"]
["Buradaki örnekte verilen ETOPLA işlevinde belirli bir miktarın üzerinde olan tüm değerlerin bulunması için büyüktür (>) işlecinin kullanıldığını görebilirsiniz:"]
[{"$f":"SUMIF(D118:D122,\">=50\")","v":200}]
["Bu ölçütü temel alarak bazı değerleri topla:"]
["...Bu hücrelere bak…\n "]
["...ve değer 50'den büyükse topla.\n "]
["NOT: Çok sayıda koşullu formülü oluşturduğunuzu fark ederseniz, PivotTable sizin için daha iyi bir çözüm olabilir. Daha fazla bilgi edinmek bu PivotTable makalesine bakın."]
["Web’de daha fazla bilgi"]
["ETOPLA işlevi hakkında bilinmesi gereken her şey"]
["ÇOKETOPLA işlevi hakkında bilinmesi gereken her şey"]
["EĞERSAY işlevi hakkında"]
["ÇOKEĞERSAY işlevi hakkında bilinmesi gereken her şey"]
["EĞEROORTALAMA işlevi hakkında"]
["ÇOKEĞERORTALAMA işlevi hakkında bilinmesi gereken her şey",null,"Meyve","Tutar",null,"Meyve","Tür","Tutar"]
["ÇOKEĞERMİN işlevi hakkında bilinmesi gereken her şey",null,"Elma",50,null,"Elma","Fuji",50]
["ÇOKEĞERMAK işlevi hakkında bilinmesi gereken her şey",null,"Portakal",20,null,"Portakal","Florida",20]
["Açılan liste oluşturma",null,"Muz",60,null,"Muz","Cavendish",60]
["Ücretsiz çevrimiçi Excel eğitimi",null,"Limon",40,null,"Limon","Sert",40]
["Başa dön",null,"Elma",50,null,"Elma","Tatlı",50]
["Sonraki",null,"Portakal",20,null,"Portakal","Yafa",20]
[null,null,"Muz",60,null,"Muz","Küçük",60]
[null,null,"Limon",40,null,"Limon","Eureka",40]
[null,null,"Elma",50,null,"Elma","Tatlı",50]
[null,null,"Portakal",20,null,"Portakal","Yafa",20]
[null,null,"Muz",60,null,"Muz","Cavendish",60]
[null,null,"Limon",40,null,"Limon","Eureka",40]
[]
[null,null,"Meyve","EĞERSAY",null,"Meyve","Tür","ÇOKEĞERSAY"]
[null,null,"Elma",{"$f":"COUNTIF(C50:C61,C64)","v":3},null,"Portakal","Florida",{"$f":"COUNTIFS(F50:F61,F64,G50:G61,G64)","v":1}]
{"$rows_empty":26}
[null,null,"Meyve","Tür","Tutar"]
[null,null,"Elma","Fuji",50]
[null,null,"Portakal","Florida",20]
[null,null,"Muz","Cavendish",60]
[null,null,"Limon","Sert",40]
[null,null,"Elma","Tatlı",50]
[null,null,"Portakal","Yafa",20]
[null,null,"Muz","Küçük",60]
[null,null,"Limon","Eureka",40]
[null,null,"Elma","Tatlı",50]
[null,null,"Portakal","Yafa",20]
[null,null,"Muz","Cavendish",60]
[null,null,"Limon","Eureka",40]
[]
[null,null,"Meyve","Tür","Deneyin"]
[null,null,"Limon","Eureka",{"$f":"AVERAGEIFS(E92:E103,C92:C103,C106,D92:D103,D106)","v":40}]
{"$rows_empty":10}
[null,null,"Öğe","Tutar"]
[null,null,"Ekmek",50]
[null,null,"Donut",100]
[null,null,"Kurabiye",40]
[null,null,"Pasta",50]
[null,null,"Turta",20]
[{"$nulls":3},{"$f":"SUMIF(D118:D122,\">=50\")","v":200}]

{"sheet":"İşlev Sihirbazı","index":10,"n_rows":14,"n_cols":4,"rows_kept":14}
["İşlev Sihirbazı sizi yönlendirsin"]
["İstediğiniz işlevin adını biliyorsanız ancak bunu nasıl oluşturacağınızdan emin değilseniz, İşlev Sihirbazı size yardımcı olabilir.\n"]
["D10 hücresini seçin, Formüller > İşlev Ekle > adımlarını izleyip İşlev ara kutusuna DÜŞEYARA yazın ve GİT’e basın. DÜŞEYARA seçeneğinin vurgulandığını gördüğünüzde aşağıdaki Tamam seçeneğine tıklayın. Listeden bir işlev seçtiğinizde Excel, bu işlevin söz dizimini görüntüler."]
["Ardından ilgili metin kutularına işlevin bağımsız değişkenlerini girin. Excel girdiğiniz her bağımsız değişkeni değerlendirir ve size sonucu gösterir. Son sonuç ise en altta görünür. Girdiğiniz her bölümdeki her bağımsız değişkene ilişkin ölçütler, formun en altında listelenir. İşinizi bitirip Tamam’a tıkladığınızda Excel formülü sizin yerinize girer.\n\n\n",null,"Meyve","Tutar"]
["BUNU İNCELEYİN\n=DÜŞEYARA(C10;C5:D8;2;YANLIŞ) formülünü elde edersiniz",null,"Elma",50]
["YARARLI BİLGİLER\nHücre ve aralık başvurularını girebilir veya farenizle seçebilirsiniz.",null,"Portakal",20]
["YARARLI BİLGİLER\nBağımsız değişken bölümlerini girdiğinizde her bağımsız değişkenin açıklaması aşağıya doğru Formül sonucunun üzerinde görüntülenir.\n",null,"Muz",60]
["Önceki",null,"Limon",40]
["Sonraki"]
["Web’de daha fazla bilgi",null,"Elma",{"$f":"VLOOKUP(C10,C5:D8,2,FALSE)","v":50}]
["Excel’deki formüllere genel bakış"]
["Excel işlevleri (kategoriye göre)"]
["Excel işlevleri (alfabetik)"]
["Ücretsiz çevrimiçi Excel eğitimi"]

{"sheet":"Formül Hataları","index":11,"n_rows":36,"n_cols":4,"rows_kept":36}
["Formül hatalarını düzeltme"]
["Bir noktada, Excel’in #HataAdı olarak gösterdiği, hatalı bir formül çalıştırırsınız. Bir şeylerin doğru çalışmadığını gösterdiğinden hatalar yararlı olabilir, ancak bu hataların düzeltilmesi de zorlayıcı olabilir. İyi haber ise, hatanın kaynağını takip edip sorunu çözmenize yardımcı olabilecek birkaç seçenek olması.\n"]
["Hata denetimi - Formüller > Hata Denetimi’ne gidin. Bu işlem, belirli hatanıza yönelik genel sebebi içeren bir iletişim kutusu yükler. D9 hücresinde “Elma” ile eşleşen bir değerin olmaması #YOK hatasına neden olur. Mevcut bir değeri kullanarak bu hatayı düzeltebilir, EĞERHATA işlevi ile hatayı gizleyebilir veya mevcut bir değer kullandığınızda giderileceğinden emin olduğunuz için yoksayabilirsiniz.\n",null,"Meyve","Tutar"]
["Bu Hata hakkında Yardım’a tıklarsanız, hata iletisine özgü bir yardım konusu açılır. Hesaplama Adımlarını Göster’e tıklarsanız Formülü Değerlendirme iletişim kutusu yüklenir.\n",null,"Elma",50]
["Değerlendir seçeneğine her tıkladığınızda, Excel bir seferde formülün bir bölümünün üzerinden geçer. Bu, hatanın oluşma sebebini her zaman söylemeyebilir, ancak oluştuğu yeri gösterir. Buradan, formülle ilgili sorun oluşmasının nedenlerini anlamak için yardım konusuna bakabilirsiniz.\n",null,"Portakal",20]
["DENEME\nBurada sorun nedir? İpucu: Tüm öğeleri TOPLAMAYA çalışıyoruz.",null,"Muz",60]
["YARARLI BİLGİLER\nSeçenekler’e tıklayarak Excel’de oluşan hataların ne zaman görüntüleneceğine veya yoksayılacağına dair kuralları ayarlayabilirsiniz.\n",null,"Limon",40]
["Önceki"]
["Sonraki",null,"Elma1",{"$f":"VLOOKUP(C9,C3:D7,2,FALSE)","v":{"$error":"#N/A"}}]
["Web’de daha fazla bilgi"]
["Formüllerdeki hataları algılama"]
["Bozuk formüllerden kaçınma"]
["İç içe geçmiş formülleri adım adım değerlendirme"]
["Ücretsiz çevrimiçi Excel eğitimi"]
{"$rows_empty":15}
[null,null,"Meyve","Tutar"]
[null,null,"Elma",50]
[null,null,"Portakal",20]
[null,null,"Muz",60]
[null,null,"Limon",40]
[]
[null,null,"Toplam",{"$f":"sume(D31:D34)","v":{"$error":"#NAME?"}}]

{"sheet":"Daha fazla bilgi edinin","index":12,"n_rows":5,"n_cols":1,"rows_kept":5}
["Excel hakkında başka sorularınız mı var?"]
["ALT+Ğ tuşlarına basıp öğrenmek istediğiniz şeyi yazın."]
["Devam edin. Excel ile öğrenecek daha çok var:"]
["Topluluk: Sorularınızı sorun ve diğer Excel hayranlarıyla bağlantı kurun.\n"]
["Diğer yenilikler nelerdir?\nOffice 365 abonelerine sürekli olarak güncelleştirmeler ve yeni özellikler sunulur.\n\n"]